bitfinex/quotes_BTCUSD_20250223
["timestamp","ask_amount","ask_price","bid_price","bid_amount"]
[1740337735845,0.003,95864.0,95863.0,0.26850726]
[1740337762759,0.003,95864.0,95863.0,0.27177041]
[1740337764489,0.003,95864.0,95863.0,0.4675149]
[1740337765795,0.002,95864.0,95863.0,0.4645149]
[1740337766222,0.001,95864.0,95863.0,0.4665149]
[1740337766636,0.002,95864.0,95863.0,0.4735149]
[1740337768795,0.0008505,95879.0,95877.0,0.15645]
[1740337769331,0.0008505,95879.0,95877.0,0.19857887]
[1740337769512,0.0008505,95879.0,95877.0,0.20184202]
[1740337769872,0.0008505,95879.0,95877.0,0.30748771]
[1740337770453,0.0018505,95878.0,95877.0,0.31048771]
[1740337770663,0.0018505,95878.0,95877.0,0.32878651]
[1740337770877,0.0008505,95878.0,95877.0,0.32278651]
[1740337771055,5e-07,95878.0,95877.0,0.47978651]
[1740337771261,5e-07,95878.0,95877.0,0.47578651]
[1740337771494,5e-07,95878.0,95877.0,0.48278651]
[1740337772109,5e-07,95878.0,95877.0,0.56568651]
[1740337776518,5e-07,95878.0,95877.0,0.56738751]
[1740337776913,0.000851,95878.0,95877.0,0.56738751]
[1740337777112,0.000851,95878.0,95877.0,0.5880919]
[1740337782841,0.000851,95878.0,95877.0,0.5051919]
[1740337783044,0.000851,95878.0,95877.0,0.45828108]
[1740337786237,0.000851,95878.0,95877.0,0.46580108]
[1740337787370,0.000851,95878.0,95877.0,0.45828108]
[1740337787610,0.000851,95878.0,95877.0,0.46580108]
[1740337789534,0.000851,95878.0,95877.0,0.49832518]
[1740337793892,0.000851,95878.0,95877.0,0.49080518]
[1740337794124,0.000851,95878.0,95877.0,0.49832518]
[1740337796060,0.000851,95878.0,95877.0,0.49080518]
[1740337796260,0.000851,95878.0,95877.0,0.49832518]
[1740337801876,0.000851,95878.0,95877.0,0.49810073]
[1740337811364,0.000851,95878.0,95877.0,0.49058073]
[1740337811610,0.000851,95878.0,95877.0,0.49810073]
[1740337814430,0.000851,95878.0,95877.0,0.49058073]
[1740337814643,0.000851,95878.0,95877.0,0.49810073]
[1740337827054,0.000851,95878.0,95877.0,0.4979082]
[1740337827260,0.000851,95878.0,95877.0,0.48712505]
[1740337827499,0.000851,95878.0,95877.0,0.49464505]
[1740337832688,0.000851,95878.0,95877.0,0.39199936]
[1740337832928,0.000851,95878.0,95877.0,0.23447936]
[1740337833178,0.000851,95878.0,95877.0,0.05344224]
[1740337833418,0.000851,95878.0,95877.0,0.04592224]
[1740337833934,0.0008505,95878.0,95877.0,0.18837224]
[1740337834169,0.0008505,95878.0,95877.0,0.19437224]
[1740337834889,0.0008505,95878.0,95877.0,0.20137224]
[1740337835125,0.0008505,95878.0,95877.0,0.19437224]
[1740337835379,0.0008505,95878.0,95877.0,0.19337224]
[1740337835844,0.0008505,95878.0,95877.0,0.19737224]
[1740337836038,0.0008505,95878.0,95877.0,0.20063523]
[1740337837574,0.0008505,95878.0,95877.0,0.20815523]
[1740337843239,0.0008505,95878.0,95877.0,0.20063523]
[1740337843489,0.0008505,95878.0,95877.0,0.04418523]
[1740337843721,0.0008505,95878.0,95877.0,0.02348084]
[1740337844215,0.0008505,95878.0,95877.0,0.01396399]
[1740337844415,0.24646821,95878.0,95877.0,0.11362075]
[1740337844641,0.24646821,95878.0,95877.0,0.11035776]
[1740337844885,0.24646821,95878.0,95877.0,0.11235776]
[1740337845107,0.0008505,95878.0,95877.0,0.11235776]
[1740337845356,0.0008505,95878.0,95877.0,0.10735776]
[1740337845582,0.0008505,95878.0,95877.0,0.11135776]
[1740337847255,0.0008505,95878.0,95877.0,0.10735776]
[1740337847443,0.0008505,95878.0,95877.0,0.10535776]
[1740337847596,0.0008505,95878.0,95877.0,0.10935776]
[1740337847801,0.0008505,95878.0,95877.0,0.01553886]
[1740337848303,0.0008505,95878.0,95877.0,0.01453886]
[1740337848523,0.0008505,95878.0,95877.0,0.01553886]
[1740337852993,0.0008505,95878.0,95877.0,0.17198886]
[1740337857263,0.0008505,95878.0,95877.0,0.17525191]
[1740337860965,0.0008505,95878.0,95877.0,0.17125191]
[1740337861187,0.0008505,95878.0,95877.0,0.17825191]
[1740337861407,0.0008505,95878.0,95877.0,0.18425191]
[1740337868599,0.0008505,95878.0,95877.0,0.21553749]
[1740337869969,0.0008505,95878.0,95877.0,0.18425191]
[1740337870868,0.0008505,95878.0,95877.0,0.18098886]
[1740337872522,0.0008505,95878.0,95877.0,0.02453886]
[1740337873406,0.1572985,95878.0,95877.0,0.02453886]
[1740337874290,0.1572985,95878.0,95877.0,0.01853886]
[1740337874560,0.1572985,95878.0,95877.0,0.001701]
[1740337874729,0.1572985,95878.0,95877.0,0.005701]
[1740337875073,0.1572985,95878.0,95877.0,0.01558474]
[1740337875304,0.1572985,95878.0,95877.0,0.005701]
[1740337875993,0.1572985,95878.0,95877.0,0.004701]
[1740337875994,0.2361985,95878.0,95877.0,0.004701]
[1740337876240,0.2361985,95878.0,95877.0,0.005701]
[1740337876666,0.24667108,95878.0,95877.0,0.005701]
[1740337876782,0.24667108,95878.0,95877.0,0.004701]
[1740337877007,0.24667108,95878.0,95877.0,0.002701]
[1740337877232,0.2361985,95878.0,95877.0,0.004701]
[1740337877482,0.2361985,95878.0,95877.0,0.003701]
[1740337879094,0.4935514,95878.0,95877.0,0.003701]
[1740337879761,0.50417183,95878.0,95877.0,0.003701]
[1740337879996,0.2361985,95878.0,95877.0,0.003701]
[1740337881907,0.24660756,95878.0,95877.0,0.003701]
[1740337886358,0.50074409,95878.0,95877.0,0.003701]
[1740337889636,0.49033503,95878.0,95877.0,0.003701]
[1740337890517,0.5009865,95878.0,95877.0,0.003701]
[1740337890957,0.49033503,95878.0,95877.0,0.003701]
[1740337892040,0.2361985,95878.0,95877.0,0.003701]
[1740337893956,0.24676824,95878.0,95877.0,0.003701]
[1740337894633,0.36965598,95878.0,95877.0,0.003701]
[1740337894819,0.61350773,95878.0,95877.0,0.003701]
[1740337895313,0.36965598,95878.0,95877.0,0.003701]
[1740337896658,0.37165598,95878.0,95877.0,0.001701]
[1740337896869,0.37365598,95878.0,95877.0,0.001701]
[1740337897724,0.6277065,95878.0,95877.0,0.001701]
[1740337900095,0.25890102,95878.0,95877.0,0.001701]
[1740337900305,0.25890102,95878.0,95877.0,0.17893399]
[1740337900523,0.25890102,95878.0,95877.0,0.236151]
[1740337900760,0.25890102,95878.0,95877.0,0.29596048]
[1740337901428,0.25690102,95878.0,95877.0,0.29596048]
[1740337901666,0.0028505,95878.0,95877.0,0.29696048]
[1740337901855,0.0008505,95878.0,95877.0,0.29696048]
[1740337902096,0.0028505,95878.0,95877.0,0.29696048]
[1740337902527,0.0008505,95878.0,95877.0,0.29696048]
[1740337902965,0.0008505,95878.0,95877.0,0.22096048]
[1740337903382,0.0008505,95878.0,95877.0,0.21996048]
[1740337905355,0.0008505,95878.0,95877.0,0.22296048]
[1740337909069,0.1572985,95878.0,95877.0,0.06651048]
[1740337909287,0.1572985,95878.0,95877.0,0.01691048]
[1740337909288,0.0008505,95878.0,95877.0,0.01691048]
[1740337909509,0.0008505,95878.0,95877.0,0.163151]
[1740337909954,0.0008505,95878.0,95877.0,0.18010782]
[1740337910636,0.0008505,95878.0,95877.0,0.17710782]
[1740337910873,0.0008505,95878.0,95877.0,0.17910782]
[1740337911654,0.0008505,95878.0,95877.0,0.17710782]
[1740337912006,0.0008505,95878.0,95877.0,0.17810782]
[1740337924498,0.0008505,95878.0,95877.0,0.22690782]
[1740337956920,5e-07,95878.0,95877.0,0.90005231]
[1740337957133,5e-07,95878.0,95877.0,0.93266067]
[1740337957359,5e-07,95878.0,95877.0,0.94022067]
[1740337957752,5e-07,95878.0,95877.0,0.93822067]
[1740337957887,5e-07,95878.0,95877.0,0.94322067]
[1740337958083,5e-07,95878.0,95877.0,0.93822067]
[1740337958758,5e-07,95878.0,95877.0,0.93722067]
[1740337959187,5e-07,95878.0,95877.0,0.94022067]
[1740337959623,5e-07,95878.0,95877.0,0.94422067]
[1740337959821,5e-07,95878.0,95877.0,0.95122067]
[1740337969064,5e-07,95878.0,95877.0,0.93426385]
[1740337969279,5e-07,95878.0,95877.0,0.95116607]
[1740337996234,5e-07,95878.0,95877.0,0.87026607]
[1740338006997,0.0008505,95879.0,95878.0,0.1647983]
[1740338007250,0.0008505,95879.0,95878.0,1.49183582]
[1740338007470,0.0008505,95879.0,95878.0,1.50905949]
[1740338007888,0.0008505,95879.0,95878.0,1.83435949]
[1740338008340,0.0008505,95879.0,95878.0,1.84135949]
[1740338008573,0.0008505,95879.0,95878.0,1.84835949]
[1740338011781,0.0008505,95879.0,95878.0,1.86872908]
[1740338016068,0.0008505,95879.0,95878.0,1.87624908]
[1740338021570,0.0003505,95879.0,95878.0,1.87624908]
[1740338022155,0.0003505,95879.0,95878.0,1.87794928]
[1740338033174,0.0003505,95879.0,95878.0,1.87744978]
[1740338037307,0.0003505,95879.0,95878.0,0.84211431]
[1740338049421,0.0003505,95879.0,95878.0,1.38681431]
[1740338051817,0.0003505,95879.0,95878.0,1.37929431]
[1740338052055,0.0003505,95879.0,95878.0,1.38681431]
[1740338071993,0.0003505,95879.0,95878.0,1.35420595]
[1740338073937,0.0003505,95879.0,95878.0,1.38681271]
[1740338094139,0.0003505,95879.0,95878.0,1.37929271]
[1740338094393,0.0003505,95879.0,95878.0,1.33990715]
[1740338095120,0.0003505,95879.0,95878.0,1.23726146]
[1740338095781,0.0815505,95879.0,95878.0,1.23726146]
[1740338096370,0.0815505,95879.0,95878.0,1.07326146]
[1740338096607,0.0815505,95879.0,95878.0,1.07674146]
[1740338096770,0.0815505,95879.0,95878.0,1.08426146]
[1740338097385,0.0815505,95879.0,95878.0,1.07326146]
[1740338097764,0.0815505,95879.0,95878.0,1.08226146]
[1740338099811,0.0815505,95879.0,95878.0,0.53756146]
[1740338104013,0.0003505,95879.0,95878.0,0.53756146]
[1740338115024,0.0003505,95879.0,95878.0,0.53004146]
[1740338115538,0.0003505,95879.0,95878.0,0.37359346]
[1740338115701,0.0472505,95879.0,95878.0,0.38111346]
[1740338115925,0.0472505,95879.0,95878.0,0.37711346]
[1740338116153,0.0472505,95879.0,95878.0,0.36859346]
[1740338116375,0.0472505,95879.0,95878.0,0.37259346]
[1740338116596,0.0472505,95879.0,95878.0,0.36859346]
[1740338117029,0.0472505,95879.0,95878.0,0.37059346]
[1740338117257,0.0472505,95879.0,95878.0,0.36459346]
[1740338117472,0.0472505,95879.0,95878.0,0.36659346]
[1740338118283,0.0472505,95879.0,95878.0,0.52304146]
[1740338118513,0.0472505,95879.0,95878.0,0.36659346]
[1740338118944,0.0472505,95879.0,95878.0,0.36559346]
[1740338123348,0.0482505,95879.0,95878.0,0.36459346]
[1740338123545,0.0482505,95879.0,95878.0,0.36559346]
[1740338124148,0.0472505,95879.0,95878.0,0.36559346]
[1740338125662,0.0482505,95879.0,95878.0,0.36559346]
[1740338135872,0.0482505,95879.0,95878.0,0.34522387]
[1740338136082,0.0013505,95879.0,95878.0,0.34522387]
[1740338184045,0.0013505,95879.0,95878.0,0.3280002]
[1740338184274,0.0013505,95879.0,95878.0,0.34576628]
[1740338192234,0.0013505,95879.0,95878.0,0.50221428]
[1740338192467,0.0013505,95879.0,95878.0,0.34576628]
[1740338210939,0.0013505,95879.0,95878.0,0.50221428]
[1740338212223,0.0013505,95879.0,95878.0,0.50221428]
[1740338212426,0.0013505,95879.0,95878.0,0.34576628]
[1740338216288,0.1577975,95879.0,95878.0,0.34576628]
[1740338225277,0.16506322,95879.0,95878.0,0.34576628]
[1740338225490,0.34270891,95879.0,95878.0,0.34576628]
[1740338225703,0.35568524,95879.0,95878.0,0.34576628]
[1740338226204,0.35468524,95879.0,95878.0,0.34576628]
[1740338226425,0.50668524,95879.0,95878.0,0.02146628]
[1740338226818,0.50468524,95879.0,95878.0,0.0027002]
[1740338227263,0.50668524,95879.0,95878.0,0.0037002]
[1740338227405,0.55318524,95879.0,95878.0,0.0027002]
[1740338227827,0.55418524,95879.0,95878.0,0.0027002]
[1740338228046,0.55318524,95879.0,95878.0,0.0027002]
[1740338228257,0.55418524,95879.0,95878.0,0.0037002]
[1740338228485,0.55218524,95879.0,95878.0,0.0027002]
[1740338228771,0.55618524,95879.0,95878.0,0.0037002]
[1740338240405,0.8184631,95879.0,95878.0,0.0037002]
[1740338240788,0.55618524,95879.0,95878.0,0.0037002]
[1740338246298,0.50968524,95879.0,95878.0,0.0037002]
[1740338253872,0.50968524,95879.0,95878.0,0.02457573]
[1740338254017,0.50968524,95879.0,95878.0,0.0037002]
[1740338257255,0.43468524,95879.0,95878.0,0.0037002]
[1740338258428,0.43468524,95879.0,95878.0,0.02503656]
[1740338258658,0.43468524,95879.0,95878.0,0.0037002]
[1740338263269,0.43468524,95879.0,95878.0,0.02468144]
[1740338265510,0.42014439,95879.0,95878.0,0.02468144]
[1740338266013,0.42014439,95879.0,95878.0,0.0425508]
[1740338266260,0.42014439,95879.0,95878.0,0.02468144]
[1740338266755,0.41914439,95879.0,95878.0,0.02368144]
[1740338266963,0.41614439,95879.0,95878.0,0.02268144]
[1740338267192,0.41914439,95879.0,95878.0,0.02268144]
[1740338270400,0.6707862,95879.0,95878.0,0.02268144]
[1740338270830,0.41914439,95879.0,95878.0,0.02268144]
[1740338273974,0.26914439,95879.0,95878.0,0.02268144]
[1740338274265,0.0043505,95879.0,95878.0,0.30612944]
[1740338274550,0.0043505,95879.0,95878.0,0.3239988]
[1740338275214,0.0043505,95879.0,95878.0,0.6492988]
[1740338277615,0.0043505,95879.0,95878.0,0.4928508]
[1740338278297,0.0043505,95879.0,95878.0,0.6492988]
[1740338278610,0.0043505,95879.0,95878.0,0.4928508]
[1740338279881,0.0043505,95879.0,95878.0,0.6492988]
[1740338280806,0.0043505,95879.0,95878.0,0.4928508]
[1740338281054,0.0043505,95879.0,95878.0,0.6492988]
[1740338281997,0.0043505,95879.0,95878.0,0.4928508]
[1740338282255,0.0043505,95879.0,95878.0,0.3658508]
[1740338282256,0.27070889,95879.0,95878.0,0.3658508]
[1740338282472,0.26914439,95879.0,95878.0,0.3658508]
[1740338286473,0.28368524,95879.0,95878.0,0.3658508]
[1740338288728,0.28368524,95879.0,95878.0,0.34486956]
[1740338290036,0.43368524,95879.0,95878.0,0.34486956]
[1740338290477,0.43368524,95879.0,95878.0,0.01956956]
[1740338290693,0.43368524,95879.0,95878.0,0.0017002]
[1740338291120,0.69296995,95879.0,95878.0,0.0017002]
[1740338291893,0.43368524,95879.0,95878.0,0.0017002]
[1740338309779,0.27153704,95879.0,95878.0,0.0017002]
[1740338309987,0.42798404,95879.0,95878.0,0.0017002]
[1740338310417,0.0043505,95879.0,95878.0,0.0954824]
[1740338310636,0.0043505,95879.0,95878.0,0.2340482]
[1740338310836,0.0043505,95879.0,95878.0,0.5772304]
[1740338311507,0.0043505,95879.0,95878.0,0.4207824]
[1740338311723,0.0013505,95879.0,95878.0,0.4207824]
[1740338311923,0.1577975,95879.0,95878.0,0.4207824]
[1740338312139,0.1597975,95879.0,95878.0,0.4207824]
[1740338312360,0.1587975,95879.0,95878.0,0.4207824]
[1740338312565,0.1567975,95879.0,95878.0,0.4207824]
[1740338312774,0.1587975,95879.0,95878.0,0.4207824]
[1740338313077,0.1577975,95879.0,95878.0,0.44166026]
[1740338314468,0.1597975,95879.0,95878.0,0.44166026]
[1740338316524,0.0033505,95879.0,95878.0,0.44166026]
[1740338317974,0.0033505,95879.0,95878.0,0.59810826]
[1740338319032,0.0023505,95879.0,95878.0,0.59810826]
[1740338319371,0.0003505,95879.0,95878.0,0.59910826]
[1740338319614,0.0003505,95879.0,95878.0,0.44266026]
[1740338320590,0.0003505,95879.0,95878.0,0.44166026]
[1740338321433,0.0013505,95879.0,95878.0,0.44166026]
[1740338325205,0.0013505,95879.0,95878.0,0.59810826]
[1740338332601,0.0003505,95879.0,95878.0,0.60858582]
[1740338332736,0.0013505,95879.0,95878.0,0.60858582]
[1740338332943,0.0013505,95879.0,95878.0,0.61058582]
[1740338334050,0.0003505,95879.0,95878.0,0.61058582]
[1740338334249,0.0003505,95879.0,95878.0,0.60010826]
[1740338334461,0.0003505,95879.0,95878.0,0.60110826]
[1740338338426,0.0003505,95879.0,95878.0,0.60437146]
[1740338342248,0.0003505,95879.0,95878.0,0.60110826]
[1740338343446,0.0003505,95879.0,95878.0,1.14580826]
[1740338345224,0.0003505,95879.0,95878.0,1.14907128]
[1740338349337,0.0003505,95879.0,95878.0,1.16863148]
[1740338353783,0.0003505,95879.0,95878.0,1.27542525]
[1740338355425,0.0003505,95879.0,95878.0,1.25586505]
[1740338355927,0.0003505,95879.0,95878.0,1.27541767]
[1740338356631,0.0003505,95879.0,95878.0,1.18166613]
[1740338370699,0.0003505,95879.0,95878.0,1.17644555]
[1740338371205,0.0003505,95879.0,95878.0,1.1686239]
[1740338375278,0.0003505,95879.0,95878.0,1.1761439]
[1740338378803,0.0003505,95879.0,95878.0,1.2087446]
[1740338379022,0.0003505,95879.0,95878.0,1.1761439]
[1740338380027,0.0003505,95879.0,95878.0,1.2087429]
[1740338385886,0.0003505,95879.0,95878.0,1.1761439]
[1740338386104,0.0003505,95879.0,95878.0,1.2087574]
[1740338387022,0.0003505,95879.0,95878.0,1.1761439]
[1740338387590,0.0003505,95879.0,95878.0,1.20875975]
[1740338394217,0.0003505,95879.0,95878.0,1.13285975]
[1740338403952,0.0003505,95879.0,95878.0,1.12533975]
[1740338404163,0.0003505,95879.0,95878.0,1.13285975]
[1740338420166,0.0003505,95879.0,95878.0,1.13808019]
[1740338421725,0.0003505,95879.0,95878.0,1.14590989]
[1740338425860,0.0008505,95880.0,95878.0,0.98946189]
[1740338426059,0.0008505,95880.0,95878.0,0.93596818]
[1740338426650,0.0008505,95880.0,95879.0,1.026447]
[1740338427148,0.0008505,95880.0,95879.0,1.04453082]
[1740338427469,0.0008505,95880.0,95879.0,1.05236052]
[1740338427877,0.0008505,95880.0,95879.0,1.05436052]
[1740338428240,0.0008505,95880.0,95879.0,1.0823966]
[1740338428566,0.0008505,95880.0,95879.0,1.0843966]
[1740338433401,0.0008505,95880.0,95879.0,1.10539291]
[1740338433831,0.0008505,95880.0,95879.0,1.10017247]
[1740338434917,0.0008505,95880.0,95879.0,1.09234277]
[1740338435458,0.0008505,95880.0,95879.0,1.09077995]
[1740338435975,0.0008505,95880.0,95879.0,1.12666736]
[1740338445154,0.0008505,95880.0,95879.0,1.0805664]
[1740338445565,0.0008505,95880.0,95879.0,1.11318848]
[1740338445774,0.0008505,95880.0,95879.0,1.0805664]
[1740338446007,0.0008505,95880.0,95879.0,1.11318867]
[1740338467843,0.0008505,95880.0,95879.0,1.21583436]
[1740338468687,0.0008505,95880.0,95879.0,1.21383436]
[1740338468882,0.0008505,95880.0,95879.0,1.22083436]
[1740338469103,0.0008505,95880.0,95879.0,1.21883436]
[1740338469447,0.0008505,95880.0,95879.0,1.22583436]
[1740338475672,0.0008505,95880.0,95879.0,1.22567736]
[1740338484306,0.0008505,95880.0,95879.0,0.35583436]
[1740338498249,0.0008505,95880.0,95879.0,0.25318867]
[1740338498709,0.0008505,95880.0,95879.0,0.24566867]
[1740338498980,0.0008505,95880.0,95879.0,0.2205664]
[1740338500832,0.0008505,95880.0,95879.0,0.20101378]
[1740338505366,0.0008505,95880.0,95879.0,0.19349378]
[1740338505567,0.0008505,95880.0,95879.0,0.20101378]
[1740338517379,0.0008505,95880.0,95879.0,0.19775102]
[1740338521624,0.0008505,95880.0,95879.0,0.20101369]
[1740338524009,0.0008505,95880.0,95879.0,0.23359601]
[1740338530281,0.0008505,95880.0,95879.0,0.23033334]
[1740338532786,0.0008505,95880.0,95879.0,0.2237087]
[1740338533567,0.0008505,95880.0,95879.0,0.22697137]
[1740338542249,0.0008505,95880.0,95879.0,0.30307137]
[1740338559150,0.0008505,95880.0,95879.0,0.2998087]
[1740338559622,0.0008505,95880.0,95879.0,0.2269712]
[1740338559838,0.0008505,95880.0,95879.0,0.2194512]
[1740338560081,0.0008505,95880.0,95879.0,0.2269712]
[1740338560790,0.0008505,95880.0,95879.0,0.2129712]
[1740338561023,0.0008505,95880.0,95879.0,0.2199712]
[1740338561813,0.0008505,95880.0,95879.0,0.2189712]
[1740338562018,0.0008505,95880.0,95879.0,0.2259712]
[1740338566140,0.0008505,95880.0,95879.0,1.0959712]
[1740338569160,0.0008505,95880.0,95879.0,1.0927087]
[1740338569838,0.0008505,95880.0,95879.0,1.09597129]
[1740338570451,0.0008505,95880.0,95879.0,1.08845129]
[1740338570659,0.0008505,95880.0,95879.0,1.09597129]
[1740338571547,0.0008505,95880.0,95879.0,1.08845129]
[1740338571760,0.0008505,95880.0,95879.0,1.09597129]
[1740338584129,0.0008505,95880.0,95879.0,1.0927087]
[1740338596845,0.0008505,95880.0,95879.0,1.09597128]
[1740338614611,0.0008505,95880.0,95879.0,1.08845128]
[1740338614846,0.0008505,95880.0,95879.0,1.09597128]
[1740338622954,0.0008505,95880.0,95879.0,1.19861697]
[1740338625049,0.08,95902.0,95879.0,1.19861697]
[1740338625050,0.08,95902.0,95885.0,0.0142988]
[1740338625266,0.0817501,95918.0,95903.0,0.156408]
[1740338625471,0.0817501,95918.0,95903.0,0.18899032]
[1740338625670,0.0817501,95918.0,95903.0,0.19737778]
[1740338626330,0.0817501,95918.0,95903.0,0.30002347]
[1740338627597,0.0008501,95918.0,95903.0,0.30002347]
[1740338627791,0.0008501,95918.0,95903.0,0.30202347]
[1740338628000,0.0008501,95918.0,95903.0,0.30502347]
[1740338628615,0.0008501,95918.0,95903.0,1.17502297]
[1740338629009,0.0008501,95918.0,95903.0,1.17202297]
[1740338629236,0.0008501,95918.0,95903.0,1.17502297]
[1740338629728,0.0008501,95918.0,95903.0,1.17002297]
[1740338630359,0.0008501,95918.0,95903.0,1.13744065]
[1740338630948,0.0008501,95918.0,95903.0,1.13944065]
[1740338631186,0.0008501,95918.0,95903.0,1.14244065]
[1740338631627,0.0008501,95918.0,95903.0,1.14644065]
[1740338632591,0.0008501,95918.0,95903.0,1.16680694]
[1740338633613,0.0008501,95918.0,95903.0,1.17432694]
[1740338637038,0.0008501,95918.0,95903.0,1.26791626]
[1740338642669,0.0008501,95918.0,95903.0,1.17432694]
[1740338643563,0.0008501,95918.0,95903.0,1.20681688]
[1740338645502,0.0008501,95918.0,95903.0,1.35681688]
[1740338645733,0.0008501,95918.0,95903.0,1.45071568]
[1740338646470,0.0008501,95918.0,95917.0,0.156385]
[1740338646692,0.00097942,95918.0,95917.0,1.0263845]
[1740338646912,0.00097942,95918.0,95917.0,1.03473264]
[1740338647884,0.00097942,95918.0,95917.0,1.03773264]
[1740338648137,0.00097942,95918.0,95917.0,1.03973264]
[1740338649725,0.00097942,95918.0,95917.0,1.05028872]
[1740338652682,0.00097942,95918.0,95917.0,1.07127944]
[1740338653626,0.00097942,95918.0,95917.0,1.17392513]
[1740338654123,0.00097942,95918.0,95917.0,1.20641962]
[1740338654339,0.00097942,95918.0,95917.0,1.20341962]
[1740338654804,0.00097942,95918.0,95917.0,1.20541962]
[1740338655029,0.00097942,95918.0,95917.0,1.21141962]
[1740338656076,0.00097942,95918.0,95917.0,1.20741962]
[1740338656889,0.00097942,95918.0,95917.0,1.21341962]
[1740338660787,0.00097942,95918.0,95917.0,1.30694058]
[1740338663495,0.00097942,95918.0,95917.0,1.21341962]
[1740338669221,0.00097942,95918.0,95917.0,1.22093962]
[1740338680723,0.00097942,95918.0,95917.0,1.21341962]
[1740338680929,0.00097942,95918.0,95917.0,1.22093962]
[1740338697757,0.00097942,95918.0,95917.0,1.24048483]
[1740338700107,0.00097942,95918.0,95917.0,1.24570248]
[1740338700321,0.0017008,95928.0,95927.0,0.156368]
[1740338700521,0.0017008,95928.0,95927.0,0.18886249]
[1740338700826,0.0017008,95928.0,95927.0,0.1971875]
[1740338701610,0.0017008,95928.0,95927.0,0.1991875]
[1740338702028,0.0017008,95928.0,95927.0,0.20740515]
[1740338702641,0.0017008,95928.0,95927.0,1.09694986]
[1740338702873,0.0017008,95928.0,95927.0,1.10246986]
[1740338703350,0.0017008,95928.0,95927.0,1.10646986]
[1740338703555,0.0017008,95928.0,95927.0,1.10346986]
[1740338703750,0.0017008,95928.0,95927.0,1.10846986]
[1740338703959,0.0017008,95928.0,95927.0,1.10325221]
[1740338704374,0.0017008,95928.0,95927.0,1.09425221]
[1740338704584,0.0017008,95928.0,95927.0,1.09825221]
[1740338704798,0.0017008,95928.0,95927.0,1.10025221]
[1740338705009,0.0004,95969.0,95950.0,0.156331]
[1740338705227,0.00097944,95951.0,95950.0,1.05882419]
[1740338705446,0.00097944,95951.0,95950.0,1.06714656]
[1740338706535,0.00097944,95951.0,95950.0,1.06814656]
[1740338707789,0.00097944,95951.0,95950.0,1.07314656]
[1740338707983,0.00097944,95951.0,95950.0,1.07214656]
[1740338708250,0.00097944,95951.0,95950.0,1.08277051]
[1740338708495,0.00097944,95951.0,95950.0,1.08777051]
[1740338709127,0.00097944,95951.0,95950.0,1.08277051]
[1740338709548,0.00097944,95951.0,95950.0,1.08877051]
[1740338709767,0.00097944,95951.0,95950.0,1.08377051]
[1740338710183,0.00097944,95951.0,95950.0,1.08977051]
[1740338710405,0.00097944,95951.0,95950.0,1.05727602]
[1740338711261,0.00097944,95951.0,95950.0,1.04665207]
[1740338712767,0.00097944,95951.0,95950.0,1.06735394]
[1740338714867,0.07907944,95951.0,95950.0,0.91102294]
[1740338715504,0.07907944,95951.0,95950.0,0.91431974]
[1740338715717,0.23540844,95951.0,95950.0,0.91431974]
[1740338715928,0.07907944,95951.0,95950.0,0.91431974]
[1740338716370,0.07907944,95951.0,95950.0,0.92009246]
[1740338716605,0.07907944,95951.0,95950.0,0.91409246]
[1740338716930,0.07907944,95951.0,95950.0,0.91609246]
[1740338717326,0.07907944,95951.0,95950.0,0.90809246]
[1740338717751,0.07907944,95951.0,95950.0,0.91309246]
[1740338718173,0.07907944,95951.0,95950.0,0.91609246]
[1740338728088,0.07907944,95951.0,95950.0,1.07242346]
[1740338728305,0.07907944,95951.0,95950.0,0.91609246]
[1740338729724,0.07907944,95951.0,95950.0,1.07242346]
[1740338730513,0.00097944,95951.0,95950.0,1.07242346]
[1740338731896,0.00097944,95951.0,95950.0,1.07042346]
[1740338732146,0.00097944,95951.0,95950.0,1.07242346]
[1740338732580,0.00097944,95951.0,95950.0,1.07042346]
[1740338732834,0.00097944,95951.0,95950.0,1.07242346]
[1740338733551,0.00097944,95951.0,95950.0,1.06642346]
[1740338734012,0.00097944,95951.0,95950.0,1.06942346]
[1740338734923,0.00097944,95951.0,95950.0,1.1019233]
[1740338736754,0.00097944,95951.0,95950.0,1.0989233]
[1740338736973,0.00097944,95951.0,95950.0,1.1049233]
[1740338737800,0.00097944,95951.0,95950.0,1.0969233]
[1740338738038,0.00097944,95951.0,95950.0,1.1089233]
[1740338738498,0.00097944,95951.0,95950.0,1.1029233]
[1740338738943,0.00097944,95951.0,95950.0,1.1089233]
[1740338739157,0.00047944,95951.0,95950.0,1.1089233]
[1740338740871,0.00047944,95951.0,95950.0,1.1164433]
[1740338760088,0.00047944,95951.0,95950.0,1.1181429]
[1740338778186,0.00047944,95951.0,95950.0,1.21185371]
[1740338781251,0.00047944,95951.0,95950.0,1.1181429]
[1740338783663,0.00047944,95951.0,95950.0,1.1121429]
[1740338783881,0.00047944,95951.0,95950.0,1.0986229]
[1740338784066,0.00047944,95951.0,95950.0,1.1046229]
[1740338784394,0.00047944,95951.0,95950.0,1.1096229]
[1740338785647,0.00047944,95951.0,95950.0,1.1046229]
[1740338785951,0.00047944,95951.0,95950.0,1.1096229]
[1740338792919,0.00047944,95951.0,95950.0,1.20334743]
[1740338796050,0.00047944,95951.0,95950.0,1.1096229]
[1740338802935,0.00047944,95951.0,95950.0,1.1036229]
[1740338803151,0.00047944,95951.0,95950.0,1.0986229]
[1740338804251,0.00047944,95951.0,95950.0,1.1036229]
[1740338804489,0.00047944,95951.0,95950.0,1.1086229]
[1740338809339,0.00047944,95951.0,95950.0,0.9522919]
[1740338809630,0.00047944,95951.0,95950.0,0.91979206]
[1740338809856,0.00047944,95951.0,95950.0,0.95234962]
[1740338810299,0.00047944,95951.0,95950.0,0.91979206]
[1740338810480,0.00047944,95951.0,95950.0,0.91479206]
[1740338810732,0.00047944,95951.0,95950.0,0.91279206]
[1740338810958,0.00047944,95951.0,95950.0,0.91479206]
[1740338812332,0.00047944,95951.0,95950.0,1.07112306]
[1740338812513,0.00047944,95951.0,95950.0,0.91479206]
[1740338812758,0.00047944,95951.0,95950.0,1.10367021]
[1740338834625,0.00047944,95951.0,95950.0,1.18567021]
[1740338836229,0.00047944,95951.0,95950.0,1.10367021]
[1740338855971,0.00047944,95951.0,95950.0,1.15337021]
[1740338856334,0.00047944,95951.0,95950.0,1.2560159]
[1740338856908,0.00047944,95951.0,95950.0,1.2540159]
[1740338857066,0.00047944,95951.0,95950.0,1.2530159]
[1740338857280,0.00047944,95951.0,95950.0,1.2560159]
[1740338858489,0.00047944,95951.0,95950.0,1.2540159]
[1740338858876,0.00047944,95951.0,95950.0,1.2550159]
[1740338859103,0.00047944,95951.0,95950.0,1.2600159]
[1740338859945,0.00047944,95951.0,95950.0,1.2560159]
[1740338860093,0.00047944,95951.0,95950.0,1.2550159]
[1740338860532,0.00047944,95951.0,95950.0,1.2610159]
[1740338861563,0.00047944,95951.0,95950.0,1.2570159]
[1740338861809,0.00047944,95951.0,95950.0,1.2630159]
[1740338866924,0.00047944,95951.0,95950.0,1.4130159]
[1740338871811,0.00047944,95951.0,95950.0,1.4204959]